bitfinex-derivatives/quotes_ETHF0:USTF0_20251012
["timestamp","ask_amount","ask_price","bid_price","bid_amount"]
[1760249131933,0.1398,3807.0,3806.9,0.47244]
[1760249132440,0.5034,3807.0,3806.9,0.47244]
[1760249135535,0.1398,3807.0,3806.7,0.47246]
[1760249135736,0.3636,3806.9,3806.8,0.47245]
[1760249135938,0.1398,3807.0,3806.6,0.47247]
[1760249136233,0.3636,3806.9,3806.6,0.47247]
[1760249136433,0.2264,3806.9,3806.7,0.47246]
[1760249136634,0.3636,3806.8,3806.7,0.47246]
[1760249137337,0.3636,3806.8,3806.5,0.4751036]
[1760249137535,0.3636,3806.8,3806.6,0.47247]
[1760249137733,0.3662,3807.0,3806.6,0.47247]
[1760249137941,0.3636,3806.9,3806.6,0.47247]
[1760249138129,0.3662,3807.0,3806.6,0.47247]
[1760249138329,0.4497,3806.6,3806.5,0.0026236]
[1760249138634,0.58884728,3806.6,3806.5,0.0026236]
[1760249138934,0.00194728,3806.6,3806.5,0.4751136]
[1760249146442,0.57764728,3806.6,3806.5,0.0026236]
[1760249146742,0.1377,3806.5,3805.5,0.47261]
[1760249146940,0.3329,3805.9,3805.7,0.47258]
[1760249147843,0.3329,3805.9,3805.7,0.47448498]
[1760249148042,0.1377,3806.0,3805.7,0.47448498]
[1760249148241,0.3329,3805.9,3805.7,0.47448498]
[1760249148546,0.1377,3806.0,3805.7,0.47448498]
[1760249148843,0.3329,3805.9,3805.7,0.47448498]
[1760249149050,0.1377,3806.0,3805.7,0.47448498]
[1760249149347,0.3329,3805.9,3805.7,0.47448498]
[1760249150241,0.1377,3806.0,3805.7,0.47448498]
[1760249150643,0.3329,3805.9,3805.7,0.47448498]
[1760249150954,0.3329,3805.8,3805.7,0.47448498]
[1760249151251,0.3329,3806.2,3805.9,0.47256]
[1760249151442,0.1377,3806.0,3805.9,0.47256]
[1760249151643,0.4706,3806.0,3805.9,0.47256]
[1760249154552,0.3808,3806.5,3806.2,0.47252]
[1760249154850,0.3494,3806.3,3806.2,0.47252]
[1760249155051,0.5925,3806.3,3806.2,0.47252]
[1760249155247,0.5925,3806.3,3806.0,0.47255]
[1760249155450,0.1377,3806.5,3806.0,0.47255]
[1760249155650,0.2431,3806.2,3806.0,0.47255]
[1760249155851,0.5925,3806.1,3806.0,0.47255]
[1760249156056,0.3494,3805.9,3805.8,0.47258]
[1760249156551,0.5925,3805.9,3805.8,0.47258]
[1760249157148,0.3494,3805.9,3805.8,0.47258]
[1760249159456,0.5925,3805.9,3805.8,0.47258]
[1760249160055,0.3494,3805.9,3805.8,0.47258]
[1760249160454,0.5925,3805.9,3805.8,0.47258]
[1760249161359,0.83,3805.9,3805.8,0.47258]
[1760249161559,0.83,3805.9,3805.7,0.00190498]
[1760249161760,0.3494,3805.9,3805.8,0.47258]
[1760249164856,0.3494,3806.3,3806.2,0.47253]
[1760249169061,0.5925,3806.3,3806.2,0.47253]
[1760249170559,0.3494,3805.9,3805.8,0.47258]
[1760249170864,0.83,3805.9,3805.8,0.47258]
[1760249171255,0.83,3805.9,3805.7,0.00190498]
[1760249172363,0.83,3805.8,3805.7,0.00190498]
[1760249172765,0.3494,3805.8,3805.7,0.00190498]
[1760249173663,0.5925,3805.8,3805.7,0.00190498]
[1760249174564,0.83,3805.8,3805.7,0.00190498]
[1760249176666,0.5925,3805.8,3805.7,0.00190498]
[1760249178165,0.3494,3806.2,3805.7,0.00190498]
[1760249178370,0.4871,3806.5,3805.7,2.3414292]
[1760249178767,0.3494,3806.4,3805.7,3.5228992]
[1760249178968,0.3494,3806.4,3806.3,0.47252]
[1760249179167,0.1377,3806.5,3805.9,2.33952422]
[1760249179168,0.4841,3806.0,3805.9,2.33952422]
[1760249179675,0.4841,3806.0,3805.9,2.81209422]
[1760249179867,0.9647,3806.0,3805.7,0.00190498]
[1760249181770,0.6153,3806.0,3805.7,0.47449498]
[1760249182071,0.3494,3805.9,3805.8,0.47257]
[1760249182971,0.1347,3806.0,3805.8,0.47257]
[1760249182972,0.4841,3806.0,3805.8,0.47257]
[1760249183367,0.3494,3806.4,3806.3,0.47251]
[1760249183572,0.3438,3806.4,3806.3,0.47251]
[1760249185277,0.3438,3806.4,3806.1,0.47253]
[1760249185668,0.2365,3806.4,3806.2,0.47252]
[1760249185972,0.3438,3806.3,3806.2,0.47252]
[1760249186174,0.5803,3806.3,3806.2,0.47252]
[1760249186563,0.3438,3806.2,3806.0,0.47255]
[1760249186773,0.1377,3806.5,3806.0,0.47255]
[1760249186774,0.3438,3806.1,3806.0,0.47255]
[1760249187169,0.4815,3806.5,3806.4,0.4725]
[1760249188869,0.00194728,3806.6,3806.4,0.4725]
[1760249189077,0.4836,3807.5,3806.2,2.33952422]
[1760249189375,0.4836,3807.5,3807.4,0.47238]
[1760249189770,0.1398,3807.5,3807.4,0.47238]
[1760249190174,0.14230169,3807.5,3807.4,0.47238]
[1760249190677,0.48610169,3807.5,3807.4,0.47238]
[1760249198478,0.1391,3808.5,3807.9,0.47232]
[1760249198788,0.4829,3808.5,3808.4,0.47226]
[1760249199172,0.7194,3809.0,3808.9,0.47219]
[1760249199376,0.4829,3809.0,3808.9,0.47219]
[1760249199576,0.4851959,3809.0,3808.9,0.47531955]
[1760249199879,0.0022959,3809.0,3808.9,0.47531955]
[1760249201283,0.4851959,3809.0,3808.9,0.47531955]
[1760249201881,0.1413959,3809.0,3808.9,0.47531955]
[1760249202178,0.1391,3810.0,3809.8,0.47207]
[1760249202379,0.3324,3809.9,3809.8,0.47207]
[1760249203181,0.33516692,3809.9,3809.8,0.47207]
[1760249204280,0.55896692,3809.9,3809.8,0.47207]
[1760249204480,0.78116692,3809.9,3809.8,0.47207]
[1760249204678,0.446,3809.6,3808.9,0.00312955]
[1760249204882,0.478,3809.0,3808.9,0.47531955]
[1760249205081,0.1456,3809.5,3809.4,0.47213]
[1760249205679,0.478,3809.5,3809.4,0.47213]
[1760249206080,0.3324,3809.8,3809.7,0.4721]
[1760249206284,0.00276692,3809.9,3809.7,0.4721]
[1760249208980,0.3324,3810.6,3810.4,0.47201]
[1760249209387,0.3324,3810.9,3810.8,0.47196]
[1760249209574,0.7784,3810.9,3810.8,0.47196]
[1760249210086,0.78119271,3810.9,3810.8,0.47196]
[1760249211686,0.33519271,3810.9,3810.8,0.47196]
[1760249212587,0.55899271,3810.9,3810.8,0.47196]
[1760249215289,0.78119271,3810.9,3810.8,0.47196]
[1760249220591,0.33519271,3810.9,3810.8,0.47196]
[1760249220890,0.56349271,3810.9,3810.8,0.47196]
[1760249221091,0.79749271,3810.9,3810.8,0.47196]
[1760249225097,0.33519271,3810.9,3810.8,0.47196]
[1760249225293,0.00279271,3810.9,3810.8,0.47196]
[1760249225800,0.34329271,3810.9,3810.8,0.47196]
[1760249227902,0.57159271,3810.9,3810.8,0.47196]
[1760249228403,0.80559271,3810.9,3810.8,0.47196]
[1760249229197,1.49188936,3810.9,3810.8,0.47196]
[1760249230001,6.75788936,3810.9,3810.8,0.47196]
[1760249232403,6.75834856,3810.9,3810.8,0.47196]
[1760249232793,5.95554856,3810.9,3810.8,0.47196]
[1760249233302,6.29604856,3810.9,3810.8,0.47196]
[1760249233996,5.26879271,3810.9,3810.8,0.47196]
[1760249235200,0.00279271,3810.9,3810.8,5.47196]
[1760249235396,0.3405,3812.0,3811.9,0.47182]
[1760249235703,0.3405,3812.4,3812.3,0.47177]
[1760249235905,1.02334744,3812.4,3812.3,0.47177]
[1760249236102,0.3625,3812.8,3812.7,0.47172]
[1760249236302,0.36440556,3812.8,3812.7,0.47414726]
[1760249239198,0.1457,3813.5,3813.4,0.47164]
[1760249239401,0.1457,3814.0,3813.9,0.47158]
[1760249240008,0.1457,3815.0,3813.4,1.17909]
[1760249240009,0.234,3814.3,3814.2,0.47153]
[1760249240204,0.46542786,3814.3,3814.2,0.47153]
[1760249240603,0.00312786,3814.3,3814.2,0.47153]
[1760249241212,0.34362786,3814.3,3814.2,0.47153]
[1760249241810,0.00312786,3814.3,3814.2,0.47153]
[1760249242210,0.3405,3814.9,3814.8,0.47146]
[1760249242505,0.1457,3815.0,3814.8,0.47146]
[1760249243105,0.3405,3814.9,3814.8,0.47146]
[1760249243310,0.00188041,3814.9,3814.8,0.47146]
[1760249244111,0.33918041,3814.9,3814.8,0.47146]
[1760249244305,0.00188041,3814.9,3814.8,0.47146]
[1760249248412,0.483,3815.5,3815.4,0.47139]
[1760249249214,0.48500222,3815.5,3815.4,0.47342899]
[1760249250203,0.71340222,3815.5,3815.4,0.00203899]
[1760249250409,0.93550222,3815.5,3815.4,0.47342899]
[1760249250815,0.48500222,3815.5,3815.4,0.47342899]
[1760249251715,0.71340222,3815.5,3815.4,0.47342899]
[1760249252310,0.93550222,3815.5,3815.4,0.47342899]
[1760249253419,5.93550222,3815.5,3815.4,0.00203899]
[1760249253912,0.71340222,3815.5,3815.4,0.00203899]
[1760249254111,0.93550222,3815.5,3815.4,0.00203899]
[1760249256819,5.93550222,3815.5,3815.4,0.00203899]
[1760249257922,0.71340222,3815.5,3815.4,0.00203899]
[1760249258121,0.48500222,3815.5,3815.4,0.00203899]
[1760249260516,0.93550222,3815.5,3815.4,0.00203899]
[1760249261327,0.71340222,3815.5,3815.4,0.00203899]
[1760249261923,0.48500222,3815.5,3815.4,0.00203899]
[1760249262115,0.70800222,3815.5,3815.4,0.00203899]
[1760249262519,0.48500222,3815.5,3815.4,0.00203899]
[1760249263319,0.92840222,3815.5,3815.4,0.00203899]
[1760249263621,0.48500222,3815.5,3815.4,0.00203899]
[1760249264017,0.00200222,3815.5,3815.4,0.00203899]
[1760249264217,0.4923,3816.5,3816.3,0.47127]
[1760249264417,0.4434,3816.2,3816.1,0.4713]
[1760249264620,0.79,3816.2,3816.1,0.4713]
[1760249265229,0.7015,3815.5,3815.4,0.00203899]
[1760249265429,0.7015,3815.5,3815.4,0.47342899]
[1760249266026,5.9219,3815.5,3815.4,0.00203899]
[1760249266231,0.4785,3814.5,3814.4,0.47151]
[1760249266729,0.3466,3814.3,3813.6,1.17904]
[1760249266936,0.223,3814.4,3814.2,0.47153]
[1760249267128,0.1319,3814.5,3814.2,0.47400136]
[1760249267129,0.3466,3814.3,3814.2,0.47400136]
[1760249268032,0.1319,3814.5,3814.4,0.47151]
[1760249268233,0.1319,3815.0,3814.2,0.00247136]
[1760249268234,0.3466,3814.9,3814.8,0.47145]
[1760249269123,0.1319,3815.0,3814.8,0.47145]
[1760249269934,0.3466,3814.9,3814.8,0.47145]
[1760249270338,0.79,3814.9,3814.8,0.47145]
[1760249271242,0.5696,3814.9,3814.8,0.47145]
[1760249271935,0.79,3814.9,3814.8,0.47145]
[1760249272138,0.3466,3814.9,3814.8,0.47145]
[1760249272433,0.79,3814.9,3814.6,0.47148]
[1760249272738,0.3466,3814.8,3814.7,0.47147]
[1760249272937,0.5696,3814.8,3814.7,0.47147]
[1760249273440,0.3466,3814.8,3814.7,0.47147]
[1760249273846,0.7952,3814.8,3814.7,0.47147]
[1760249278042,0.3466,3814.8,3814.7,0.47147]
[1760249278843,0.585,3814.8,3814.7,0.47147]
[1760249281246,0.8106,3814.8,3814.7,0.47147]
[1760249282037,0.8018,3814.4,3814.3,0.47153]
[1760249282242,0.3378,3814.4,3814.3,0.47153]
[1760249283443,0.8018,3814.4,3814.3,0.47153]
[1760249284548,0.5762,3814.4,3814.3,0.47153]
[1760249285043,0.8018,3814.4,3814.3,0.47153]
[1760249286744,0.3378,3814.4,3814.3,0.47153]
[1760249286945,0.1351,3814.5,3814.3,0.47153]
[1760249287144,0.1351,3814.5,3814.3,2.34064598]
[1760249287450,0.4729,3814.5,3814.3,2.34064598]
[1760249287651,0.4729,3814.5,3814.4,1.86911598]
[1760249287950,0.1351,3814.5,3814.3,2.34064598]
[1760249288150,0.5762,3814.4,3814.3,2.34064598]
[1760249288352,0.5762,3814.4,3814.3,2.34420135]
[1760249288551,0.3378,3814.4,3814.3,2.34420135]
[1760249288747,0.3378,3814.4,3814.3,0.47153]
[1760249289348,0.3378,3814.4,3814.3,2.34420135]
[1760249289549,0.1351,3814.5,3814.3,2.34420135]
[1760249289550,0.1351,3814.5,3814.3,0.47153]
[1760249289753,0.1351,3814.5,3814.4,1.87305942]
[1760249290052,0.1351,3814.5,3814.3,0.47153]
[1760249290853,0.4729,3814.5,3814.3,0.47153]
[1760249292355,0.4729,3814.5,3814.3,2.81105422]
[1760249292555,0.3378,3814.4,3814.3,2.81105422]
[1760249293553,0.1351,3814.5,3814.3,0.47153]
[1760249293744,0.1351,3814.7,3814.5,0.4715]
[1760249293948,5.266,3815.4,3815.3,0.4714]
[1760249294153,0.1319,3815.5,3815.3,0.4714]
[1760249294154,5.6363,3815.5,3815.3,0.4714]
[1760249294454,0.464,3815.4,3815.3,0.4714]
[1760249295352,0.1319,3815.5,3815.3,0.4714]
[1760249295553,0.1319,3815.5,3815.3,2.34549869]
[1760249295856,0.1319,3815.5,3815.4,1.87409869]
[1760249295857,0.3703,3815.5,3815.4,1.87409869]
[1760249296351,0.7081,3815.5,3815.4,1.87409869]
[1760249297153,0.4697,3815.5,3815.4,1.87409869]
[1760249297459,0.4697,3816.0,3815.9,0.47133]
[1760249297758,0.7081,3816.0,3815.9,0.47133]
[1760249299156,0.9337,3816.0,3815.9,0.47133]
[1760249300160,0.3378,3815.9,3815.7,1.87685038]
[1760249300359,0.8018,3815.6,3815.5,2.34823038]
[1760249300558,0.8018,3815.6,3815.5,0.47138]
[1760249301263,0.3378,3815.6,3815.5,0.47138]
[1760249301563,0.3378,3815.6,3815.5,2.34823038]
[1760249301764,0.5762,3815.6,3815.5,2.34823038]
[1760249302264,0.3703,3816.0,3815.9,0.47133]
[1760249302467,0.5959,3816.0,3815.9,0.47133]
[1760249302859,0.9337,3816.0,3815.9,0.47133]
[1760249305864,0.5959,3816.0,3815.7,1.87685038]
[1760249306165,0.5894,3815.8,3815.7,2.34820038]
[1760249306366,0.8239,3815.8,3815.7,0.47135]
[1760249307166,0.1319,3816.0,3815.6,1.87685038]
[1760249307167,0.8239,3815.7,3815.6,1.87685038]
[1760249307365,0.8239,3815.7,3815.5,2.34823038]
[1760249307568,0.3653,3815.6,3815.5,0.47138]
[1760249307770,0.3653,3815.6,3815.5,2.34823038]
[1760249308067,0.00323909,3816.2,3816.1,0.4713]
[1760249308560,0.36853909,3816.2,3816.1,0.4713]
[1760249308761,0.59263909,3816.2,3816.1,0.4713]
[1760249309159,0.36853909,3816.2,3816.1,0.4713]
[1760249309370,0.00323909,3816.2,3816.1,0.4713]
[1760249309663,0.00323909,3816.2,3816.1,5.4713]
[1760249309856,0.47102,3818.4,3817.3,0.47115]
[1760249310063,0.3574,3818.5,3817.3,1.87190527]
[1760249310363,0.3653,3817.9,3817.8,0.47108]
[1760249310764,0.36734268,3817.9,3817.8,0.47361503]
[1760249313272,0.00204268,3817.9,3817.8,0.47361503]
[1760249313872,0.00204268,3817.9,3817.8,5.47361503]
[1760249316963,0.47087,3819.7,3818.5,0.47101]
[1760249317169,0.3653,3819.3,3818.8,0.47096]
[1760249317666,0.3653,3819.4,3818.8,0.47096]
[1760249317862,0.3653,3819.4,3817.9,1.1777]
[1760249318068,0.1333,3818.5,3818.3,0.47102]
[1760249318471,0.1333,3819.0,3818.4,0.47101]
[1760249318868,0.1333,3819.0,3818.5,0.471]
[1760249319175,0.4986,3819.0,3818.0,1.17768]
[1760249319362,0.3653,3819.0,3818.0,1.17768]
[1760249319566,0.36785318,3819.4,3818.7,0.47098]
[1760249319968,0.3574,3819.0,3818.7,0.47098]
[1760249320163,0.3653,3818.9,3818.7,0.47098]
[1760249320567,0.2241,3818.8,3818.7,0.47098]
[1760249320763,0.5894,3818.8,3817.9,1.1777]
[1760249320963,0.1333,3818.5,3818.4,0.47101]
[1760249321163,0.4986,3818.5,3818.4,0.47101]
[1760249321876,0.4604,3818.3,3818.2,0.47104]
[1760249322071,0.556,3818.3,3818.2,0.47104]
[1760249322378,0.3314,3818.3,3818.2,0.47104]
[1760249326270,0.2246,3817.9,3817.8,0.00253503]
[1760249326470,0.3314,3817.9,3817.8,0.00253503]
[1760249326977,0.1439,3818.0,3817.9,0.47108]
[1760249327177,0.4753,3818.0,3817.9,0.47108]
[1760249327570,0.7918,3817.9,3817.8,0.00253503]
[1760249328077,0.3314,3817.9,3817.8,0.00253503]
[1760249329076,0.7918,3817.9,3817.8,0.00253503]
[1760249329779,0.556,3817.9,3817.8,0.00253503]
[1760249330471,0.7918,3817.9,3817.8,0.00253503]
[1760249331169,0.3314,3817.9,3817.8,0.00253503]
[1760249331380,0.6893,3818.5,3817.8,0.00253503]
[1760249331772,0.6893,3818.5,3817.9,0.47108]
[1760249332680,0.3314,3818.4,3817.8,0.00253503]
[1760249332981,0.556,3818.3,3818.2,0.47104]
[1760249333369,0.3314,3818.3,3818.2,0.47104]
[1760249335477,0.1439,3818.5,3817.8,0.00253503]
[1760249335478,0.4742,3818.5,3818.4,0.47102]
[1760249335875,0.1333,3819.0,3818.5,0.471]
[1760249335876,0.3303,3818.9,3818.5,0.471]
[1760249336181,0.2363,3818.8,3818.5,0.471]
[1760249336376,0.24,3818.4,3818.3,0.47102]
[1760249336579,0.2363,3818.2,3818.1,0.47104]
[1760249336775,0.8066,3818.2,3818.1,0.47104]
[1760249336974,0.3303,3818.2,3818.1,0.47104]
[1760249337381,0.8066,3818.2,3818.1,0.47104]
[1760249337573,0.1356,3818.5,3817.8,0.00253503]
[1760249337574,0.3719,3818.0,3817.9,0.47108]
[1760249337876,0.8066,3817.9,3817.8,0.47362503]
[1760249338287,0.5666,3817.9,3817.8,0.47362503]
[1760249338478,0.8066,3817.9,3817.8,0.00253503]
[1760249338884,0.3303,3817.9,3817.8,0.00253503]
[1760249339276,0.5666,3817.9,3817.8,0.00253503]
[1760249339879,0.8066,3817.9,3817.8,0.00253503]
[1760249340973,0.5666,3817.9,3817.8,0.00253503]
[1760249341378,0.3303,3817.9,3817.8,0.00253503]
[1760249341584,0.8066,3817.9,3817.8,0.00253503]
[1760249342383,0.3303,3818.3,3817.8,0.00253503]
[1760249342582,0.3303,3818.4,3817.8,0.00253503]
[1760249343085,0.2363,3818.4,3817.9,0.47108]
[1760249343289,0.3303,3818.4,3817.9,0.47108]
[1760249343789,0.3719,3818.5,3818.0,0.47107]
[1760249343980,0.1356,3818.5,3818.0,0.47107]
[1760249344177,0.3303,3818.4,3818.0,0.47107]
[1760249344491,0.5666,3817.9,3817.8,0.47362503]
[1760249344785,0.5666,3817.9,3817.8,0.00253503]
[1760249345286,0.8066,3817.9,3817.8,0.00253503]
[1760249345582,0.1356,3818.0,3817.8,0.47362503]
[1760249345785,0.4659,3818.0,3817.8,0.47362503]
[1760249346486,0.3303,3817.9,3817.8,0.47362503]
[1760249346881,0.5666,3817.9,3817.8,0.00253503]
[1760249347188,0.8066,3817.9,3817.8,0.00253503]
[1760249355305,0.8066,3817.9,3817.8,1.8744403]
[1760249356108,0.8066,3817.9,3817.8,0.00253503]
[1760249357098,0.8066,3817.9,3817.8,1.8744403]
[1760249357508,0.8066,3817.9,3817.8,0.00253503]
[1760249358003,5.8066,3817.9,3817.8,0.00253503]
[1760249358203,5.8066,3817.9,3817.4,1.87190527]
[1760249358403,1.41333,3817.5,3817.4,1.37560992]
[1760249358710,0.4763,3816.9,3816.7,2.34266282]
[1760249359006,0.8066,3816.7,3816.6,0.47124]
[1760249359406,0.80993634,3816.7,3816.6,0.47382345]
[1760249360801,0.33363634,3816.7,3816.6,0.47382345]
[1760249362703,0.00333634,3816.7,3816.6,0.47382345]
[1760249363007,0.33363634,3816.7,3816.6,0.47382345]
[1760249364110,0.33363634,3816.7,3816.6,0.00258345]
[1760249364296,0.80153634,3816.7,3816.6,0.00258345]
[1760249364495,0.00333634,3816.7,3816.6,0.00258345]
[1760249364701,0.34753634,3816.7,3816.6,0.00258345]
[1760249364901,0.57603634,3816.7,3816.6,0.00258345]
[1760249365511,0.34753634,3816.7,3816.6,0.00258345]
[1760249367211,0.57603634,3816.7,3816.6,0.00258345]
[1760249367414,0.80763634,3816.7,3816.6,0.00258345]
[1760249371510,0.57603634,3816.7,3816.6,0.00258345]
[1760249371911,0.80763634,3816.7,3816.6,0.00258345]
[1760249374117,0.34753634,3816.7,3816.6,0.00258345]
[1760249374711,0.57603634,3816.7,3816.6,0.00258345]
[1760249377710,0.80763634,3816.7,3816.6,0.00258345]
[1760249377908,5.46343634,3816.7,3816.0,1.87127578]
[1760249378107,0.8043,3816.1,3816.0,1.87127578]
[1760249378410,0.5727,3815.9,3815.8,0.47134]
[1760249378719,0.8043,3815.9,3815.8,0.47134]
[1760249378920,0.8043,3815.9,3815.8,0.47411995]
[1760249381918,0.4899,3816.5,3816.4,0.47127]
[1760249382222,0.7184,3816.5,3816.4,0.47127]
[1760249383022,0.4899,3816.5,3816.4,0.47127]
[1760249385423,0.7184,3816.5,3816.4,0.47127]
[1760249386219,0.9521,3816.5,3816.4,0.47127]
[1760249386920,0.4589,3816.3,3816.1,1.87125594]
[1760249387116,0.6041,3816.0,3815.8,1.87403589]
[1760249387421,0.8232,3815.9,3815.8,1.87403589]
[1760249387727,0.8232,3815.9,3815.8,2.34537589]
[1760249388824,0.8232,3815.9,3815.8,0.47411995]
[1760249389822,0.3643,3815.9,3815.8,2.34537589]
[1760249390127,0.3643,3815.9,3815.8,0.47411995]
[1760249390327,0.8232,3815.9,3815.8,0.47411995]
[1760249391323,0.5895,3815.9,3815.8,0.47411995]
[1760249391524,0.1452,3816.0,3815.8,0.47411995]
[1760249391727,0.5095,3816.0,3815.9,1.87406502]
[1760249392124,0.7347,3816.0,3815.9,1.87406502]
[1760249392929,0.1457,3816.5,3816.0,1.1783]
[1760249393130,0.51,3816.5,3816.3,0.47128]
[1760249393428,0.5895,3816.4,3816.3,0.47128]
[1760249394527,0.8232,3816.4,3816.3,0.47128]
[1760249396729,0.5895,3816.4,3816.3,0.47128]
[1760249396933,0.3643,3816.4,3816.3,2.3450784]
[1760249397131,0.33633634,3816.7,3816.6,0.47124]
[1760249397634,0.56203634,3816.7,3816.6,0.47124]
[1760249397825,0.79163634,3816.7,3816.6,0.47124]
[1760249398529,0.56203634,3816.7,3816.6,0.47124]
[1760249398728,0.33633634,3816.7,3816.6,0.47124]
[1760249399025,0.56203634,3816.7,3816.6,0.47124]
[1760249399737,0.4686,3817.0,3816.9,0.4712]
[1760249400535,0.47059623,3817.0,3816.9,0.4712]
[1760249400835,0.00199623,3817.0,3816.9,0.4712]
[1760249401934,0.00199623,3817.0,3816.9,5.4712]
[1760249403237,0.00199623,3817.0,3816.9,2.80866976]
[1760249403638,0.70489623,3817.0,3816.9,2.80866976]
[1760249403837,0.70489623,3817.0,3816.9,0.4712]
[1760249404239,0.47919623,3817.0,3816.9,0.4712]
[1760249406438,0.93449623,3817.0,3816.9,0.4712]
[1760249406639,0.93449623,3817.0,3816.9,2.33919031]
[1760249407645,0.93449623,3817.0,3816.9,0.4712]
[1760249409140,0.47919623,3817.0,3816.9,0.4712]
[1760249409440,0.00199623,3817.0,3816.9,0.4712]
[1760249409634,0.33499623,3817.0,3816.9,0.4712]
[1760249410034,0.47919623,3817.0,3816.9,0.4712]
[1760249410342,0.70489623,3817.0,3816.9,0.4712]
[1760249411146,0.47919623,3817.0,3816.9,0.4712]
[1760249414250,0.1442,3817.5,3817.4,0.75054]
[1760249414442,0.1452,3818.0,3816.6,15.31547]
[1760249414443,0.5587,3817.9,3817.8,0.2794]
[1760249414747,0.5587,3817.9,3817.8,0.75049]
[1760249415246,0.56054388,3817.9,3817.8,0.75049]
[1760249415643,0.56054388,3817.9,3817.8,0.61079]
[1760249415644,0.79014388,3817.9,3817.8,0.61079]
[1760249415948,0.79014388,3817.9,3817.8,0.47109]
[1760249416552,0.56054388,3817.9,3817.8,0.61079]
[1760249416752,0.56054388,3817.9,3817.8,0.75049]
[1760249417656,0.33484388,3817.9,3817.8,0.75049]
[1760249417853,0.33484388,3817.9,3817.8,0.83779]
[1760249420049,0.56054388,3817.9,3817.8,0.75049]
[1760249420355,0.79014388,3817.9,3817.8,0.75049]
[1760249421359,0.33484388,3817.9,3817.8,0.83779]
[1760249423253,0.00184388,3817.9,3817.8,0.83779]
[1760249424861,0.7029,3818.5,3818.4,0.75042]
[1760249425063,0.4772,3818.5,3818.4,0.75042]
[1760249425263,0.7173,3818.5,3818.4,0.75042]
[1760249425464,0.333,3818.5,3818.4,0.83772]
[1760249425664,0.9661,3819.0,3818.9,0.61066]
[1760249425965,0.96899037,3819.0,3818.9,0.47337418]
[1760249426357,0.96899037,3819.0,3818.9,0.61307418]
[1760249427263,0.73059037,3819.0,3818.9,0.75277418]
[1760249428363,0.49049037,3819.0,3818.9,0.84007418]
[1760249429159,0.00289037,3819.0,3818.9,0.84007418]
[1760249429359,0.00289037,3819.0,3818.9,2.70729814]
[1760249429555,3.7e-07,3819.0,3818.9,2.70729814]
[1760249429763,3.7e-07,3819.0,3818.9,0.84007418]
[1760249430160,0.1414,3820.5,3819.4,0.7497]
[1760249430360,0.1414,3820.5,3819.0,1.17735]
[1760249430361,0.3386,3819.9,3819.8,0.366]
[1760249430757,2.15346598,3820.6,3820.5,0.2788]
[1760249430961,2.49206598,3820.6,3820.5,0.366]
[1760249431167,0.142,3821.0,3820.9,0.74951]
[1760249431168,0.3722,3821.0,3820.9,0.74951]
[1760249431461,0.37530887,3821.0,3820.9,0.74951]
[1760249431665,0.71390887,3821.0,3820.9,0.74951]
[1760249434772,0.94190887,3821.0,3820.9,0.1394]
[1760249434960,0.60330887,3821.0,3820.9,0.1394]
[1760249435364,0.60330887,3821.0,3820.9,0.2788]
[1760249435570,0.94190887,3821.0,3820.9,0.2788]
[1760249436570,0.71390887,3821.0,3820.9,0.2788]
[1760249440473,0.94190887,3821.0,3820.9,0.1394]
[1760249440776,0.94190887,3821.0,3820.9,0.2788]
[1760249441176,0.44190887,3821.0,3820.9,0.6178]
[1760249442280,0.44472179,3821.0,3820.9,0.6178]
[1760249443275,0.78332179,3821.0,3820.9,0.6178]
[1760249443872,0.00281292,3821.0,3820.9,0.6178]
[1760249445980,0.00281292,3821.0,3820.9,5.6178]
[1760249446280,0.142,3822.0,3821.8,1.3009]
[1760249446583,0.7898,3822.7,3822.1,0.3572]
[1760249446878,0.4537,3822.7,3821.8,0.82779]
[1760249447082,0.5651,3821.9,3821.8,1.30414823]
[1760249447282,0.7898,3821.9,3821.8,0.71394823]
[1760249447482,0.7898,3821.9,3821.8,1.30414823]
[1760249448079,0.7898,3821.9,3821.8,0.83355823]
[1760249448683,0.7898,3821.9,3821.8,0.00325823]
[1760249449786,5.7898,3821.9,3821.8,0.00325823]
[1760249452781,0.7898,3821.9,3821.8,0.00325823]
[1760249452981,0.3361,3821.9,3821.8,0.83355823]
[1760249453480,0.7898,3822.3,3822.2,1.06075]
[1760249453684,0.5651,3822.3,3822.2,1.28475]
[1760249453885,0.8053,3822.3,3822.2,1.28475]
[1760249454683,0.8053,3822.3,3822.2,0.92755]
[1760249455287,0.47275346,3822.7,3822.6,0.224]
[1760249455587,0.94365346,3822.7,3822.6,0.224]
[1760249455781,0.94365346,3822.7,3822.3,0.47054]
[1760249456087,0.9585,3822.5,3822.4,0.224]
[1760249456284,0.8158,3822.2,3821.9,0.47058]
[1760249456587,0.9585,3822.0,3821.9,0.69458]
[1760249456778,0.9585,3822.0,3821.8,0.00325823]
[1760249456981,1.42908,3822.0,3821.8,0.00325823]
[1760249459377,1.28638,3822.0,3821.9,0.8253]
[1760249459684,1.42908,3822.0,3821.9,0.8253]
[1760249459989,1.42908,3822.0,3821.9,0.224]
[1760249460185,2.07891837,3822.0,3821.9,0.224]
[1760249460394,2.07891837,3822.0,3821.8,0.00325823]
[1760249460584,0.8158,3821.9,3821.8,0.22725823]
[1760249460885,0.8158,3821.9,3821.8,0.82855823]
[1760249461081,0.8158,3821.9,3821.8,0.00325823]
[1760249461082,1.4658502,3821.9,3821.8,0.00325823]
[1760249461888,1.4658502,3821.9,3821.8,0.22725823]
[1760249462188,1.4658502,3821.9,3821.8,0.00325823]
[1760249462586,1.4658502,3821.9,3821.8,0.22725823]
[1760249462982,1.4658502,3821.9,3821.8,0.00325823]
[1760249464588,1.4658502,3821.9,3821.8,0.46485823]
[1760249464890,1.4658502,3821.9,3821.8,0.00325823]
[1760249466492,1.4658502,3821.9,3821.8,0.22725823]
[1760249466894,1.4658502,3821.9,3821.8,5.82855823]
[1760249466895,0.15717821,3821.9,3821.8,5.82855823]